fUSD/lending_fUSD_20250623
["ID","MTS","AMOUNT","RATE_DAILY","PERIOD"]
[367109135,1750662661975,-1171.08,0.00027671,3]
[367109136,1750662661985,-490.0,0.00027671,3]
[367109137,1750662661994,-490.0,0.00027671,3]
[367109138,1750662662004,-490.0,0.00027671,3]
[367109139,1750662662014,-231.02219155,0.00027671,3]
[367109140,1750662662023,-806.32,0.00027671,3]
[367109141,1750662662033,-1313.3,0.00027671,3]
[367109142,1750662662042,-490.0,0.00027671,3]
[367109143,1750662662051,-490.0,0.00027671,3]
[367109144,1750662662061,-550.0,0.00027671,3]
[367109145,1750662662069,-490.0,0.00027671,3]
[367109146,1750662662078,-490.0,0.00027671,3]
[367109147,1750662662087,-1866.63,0.00027671,3]
[367109148,1750662662096,-783.39,0.00027671,3]
[367109149,1750662662106,-1408.5,0.00027671,3]
[367109150,1750662662116,-760.51,0.00027671,3]
[367109151,1750662662125,-640.07,0.00027671,3]
[367109152,1750662662135,-494.33573594,0.00027671,3]
[367109153,1750662662144,-1615.12,0.00027671,3]
[367109154,1750662662154,-490.0,0.00027671,3]
[367109155,1750662662163,-1113.91,0.00027671,3]
[367109156,1750662662173,-490.0,0.00027671,3]
[367109157,1750662662182,-1204.57,0.00027671,3]
[367109158,1750662662192,-490.0,0.00027671,3]
[367109159,1750662662201,-490.0,0.00027671,3]
[367109160,1750662662210,-490.0,0.00027671,3]
[367109161,1750662662220,-1617.57,0.00027671,3]
[367109162,1750662662230,-852.31,0.00027671,3]
[367109163,1750662662239,-490.0,0.00027671,3]
[367109164,1750662662249,-1344.16,0.00027671,3]
[367109165,1750662662258,-1189.28,0.00027671,3]
[367109166,1750662662268,-490.0,0.00027671,3]
[367109167,1750662662277,-157.70934721,0.00027671,3]
[367109168,1750662662286,-490.0,0.00027671,3]
[367109169,1750662662296,-924.24,0.00027671,3]
[367109170,1750662662306,-366.16535066,0.00027671,3]
[367109171,1750662662315,-1017.87,0.00027671,3]
[367109172,1750662662325,-1327.65,0.00027671,3]
[367109173,1750662662335,-816.97,0.00027671,3]
[367109174,1750662662344,-490.0,0.00027671,3]
[367109175,1750662662355,-490.0,0.00027671,3]
[367109176,1750662662364,-1505.21,0.00027671,3]
[367109177,1750662662373,-490.0,0.00027671,3]
[367109178,1750662662383,-490.0,0.00027671,3]
[367109179,1750662662392,-490.0,0.00027671,3]
[367109180,1750662662402,-490.0,0.00027671,3]
[367109181,1750662662411,-490.0,0.00027671,3]
[367109182,1750662662421,-995.43,0.00027671,3]
[367109183,1750662662430,-490.0,0.00027671,3]
[367109184,1750662662439,-3010.94,0.00027671,2]
[367109185,1750662662449,-490.0,0.00027671,3]
[367109186,1750662662458,-1097.45,0.00027671,3]
[367109187,1750662662467,-490.0,0.00027671,3]
[367109188,1750662662477,-753.53,0.00027671,3]
[367109189,1750662662486,-1037.06,0.00027671,3]
[367109190,1750662662496,-555.69104961,0.00027671,3]
[367109191,1750662662510,-490.0,0.00027671,3]
[367109192,1750662662522,-490.0,0.00027671,3]
[367109193,1750662662532,-490.0,0.00027671,3]
[367109194,1750662662542,-490.0,0.00027671,3]
[367109195,1750662662552,-356.85080439,0.00027671,3]
[367109196,1750662662561,-1995.53,0.00027671,3]
[367109197,1750662662571,-490.0,0.00027671,3]
[367109198,1750662662580,-490.0,0.00027671,3]
[367109199,1750662662589,-490.0,0.00027671,3]
[367109200,1750662662598,-660.48,0.00027671,3]
[367109201,1750662662608,-496.8591531,0.00027671,3]
[367109202,1750662662616,-752.2,0.00027671,3]
[367109203,1750662662626,-490.0,0.00027671,3]
[367109204,1750662662635,-490.0,0.00027671,3]
[367109205,1750662662645,-1341.44,0.00027671,3]
[367109206,1750662662654,-490.0,0.00027671,3]
[367109207,1750662662663,-850.05,0.00027671,3]
[367109208,1750662662673,-490.0,0.00027671,3]
[367109209,1750662662682,-581.79,0.00027671,3]
[367109210,1750662662691,-507.29,0.00027671,3]
[367109211,1750662662700,-2153.23,0.00027671,3]
[367109212,1750662662709,-557.61,0.00027671,3]
[367109213,1750662662721,-490.0,0.00027671,3]
[367109214,1750662662730,-572.59,0.00027671,3]
[367109215,1750662662741,-490.0,0.00027671,3]
[367109216,1750662662750,-490.0,0.00027671,3]
[367109217,1750662662759,-490.0,0.00027671,3]
[367109218,1750662662769,-490.0,0.00027671,3]
[367109219,1750662662778,-490.0,0.00027671,3]
[367109220,1750662662787,-490.0,0.00027671,3]
[367109221,1750662662796,-490.0,0.00027671,3]
[367109222,1750662662805,-490.0,0.00027671,3]
[367109223,1750662662817,-287.49311077,0.00027671,3]
[367109224,1750662662826,-2413.05,0.00027671,3]
[367109225,1750662662836,-490.0,0.00027671,3]
[367109226,1750662662846,-490.0,0.00027671,3]
[367109227,1750662662855,-490.0,0.00027671,3]
[367109228,1750662662865,-490.0,0.00027671,3]
[367109229,1750662662875,-566.43,0.00027671,3]
[367109230,1750662662884,-490.0,0.00027671,3]
[367109231,1750662662895,-1348.78,0.00027671,3]
[367109232,1750662662904,-2316.4,0.00027671,3]
[367109233,1750662662914,-490.0,0.00027671,3]
[367109234,1750662662924,-1609.27,0.00027671,3]
[367109235,1750662662934,-514.33613064,0.00027671,3]
[367109236,1750662662943,-569.99,0.00027671,3]
[367109237,1750662662952,-490.0,0.00027671,3]
[367109238,1750662662962,-490.0,0.00027671,3]
[367109239,1750662662971,-295.91668367,0.00027671,3]
[367109240,1750662662980,-490.0,0.00027671,3]
[367109241,1750662662990,-490.0,0.00027671,3]
[367109242,1750662662999,-861.6,0.00027671,3]
[367109243,1750662663008,-490.0,0.00027671,3]
[367109244,1750662663018,-2663.87,0.00027671,3]
[367109245,1750662663027,-731.27,0.00027671,3]
[367109246,1750662663036,-490.0,0.00027671,3]
[367109247,1750662663045,-490.0,0.00027671,3]
[367109248,1750662663054,-1052.0,0.00027671,3]
[367109249,1750662663066,-560.0,0.00027671,3]
[367109250,1750662663076,-490.0,0.00027671,3]
[367109251,1750662663086,-1117.5,0.00027671,3]
[367109252,1750662663096,-490.0,0.00027671,3]
[367109253,1750662663106,-921.04,0.00027671,3]
[367109254,1750662663116,-490.0,0.00027671,3]
[367109255,1750662663126,-783.55,0.00027671,3]
[367109256,1750662663135,-600.11,0.00027671,3]
[367109257,1750662663145,-490.0,0.00027671,3]
[367109258,1750662663155,-785.27,0.00027671,3]
[367109259,1750662663165,-1688.41,0.00027671,3]
[367109260,1750662663174,-595.61,0.00027671,3]
[367109261,1750662663184,-1726.17,0.00027671,3]
[367109262,1750662663193,-950.58,0.00027671,3]
[367109263,1750662663202,-490.0,0.00027671,3]
[367109264,1750662663212,-490.0,0.00027671,3]
[367109265,1750662663222,-1953.41,0.00027671,3]
[367109266,1750662663232,-490.0,0.00027671,3]
[367109267,1750662663242,-490.0,0.00027671,3]
[367109268,1750662663251,-490.0,0.00027671,3]
[367109269,1750662663261,-603.07,0.00027671,3]
[367109270,1750662663271,-490.0,0.00027671,3]
[367109271,1750662663281,-1456.32,0.00027671,3]
[367109272,1750662663291,-501.63,0.00027671,3]
[367109273,1750662663301,-1698.32,0.00027671,3]
[367109274,1750662663311,-490.0,0.00027671,3]
[367109275,1750662663322,-490.0,0.00027671,3]
[367109276,1750662663332,-490.0,0.00027671,3]
[367109277,1750662663342,-490.0,0.00027671,3]
[367109278,1750662663352,-1007.06,0.00027671,3]
[367109279,1750662663362,-1681.01,0.00027671,3]
[367109280,1750662663372,-1708.4,0.00027671,3]
[367109281,1750662663382,-490.0,0.00027671,3]
[367109282,1750662663392,-873.29,0.00027671,3]
[367109283,1750662663401,-490.0,0.00027671,3]
[367109284,1750662663410,-487.38235985,0.00027671,3]
[367109285,1750662663420,-1098.59,0.00027671,3]
[367109286,1750662663430,-1944.53,0.00027671,3]
[367109287,1750662663439,-490.0,0.00027671,3]
[367109288,1750662663448,-490.0,0.00027671,3]
[367109289,1750662663458,-2433.81,0.00027671,3]
[367109290,1750662663467,-1247.14,0.00027671,3]
[367109291,1750662663477,-501.38,0.00027671,3]
[367109292,1750662663486,-750.42,0.00027671,3]
[367109293,1750662663496,-490.0,0.00027671,3]
[367109294,1750662663511,-577.0,0.00027671,3]
[367109295,1750662663520,-490.0,0.00027671,3]
[367109296,1750662663531,-662.45,0.00027671,3]
[367109297,1750662663540,-490.0,0.00027671,3]
[367109298,1750662663550,-490.0,0.00027671,3]
[367109299,1750662663559,-1551.77,0.00027671,3]
[367109300,1750662663570,-490.0,0.00027671,3]
[367109301,1750662663580,-490.0,0.00027671,3]
[367109302,1750662663592,-1650.44,0.00027671,3]
[367109303,1750662663601,-355.83350918,0.00027671,3]
[367109304,1750662663611,-703.59,0.00027671,3]
[367109305,1750662663621,-490.0,0.00027671,3]
[367109306,1750662663631,-256.36859047,0.00027671,3]
[367109307,1750662663640,-529.91,0.00027671,3]
[367109308,1750662663650,-490.0,0.00027671,3]
[367109309,1750662663660,-490.0,0.00027671,3]
[367109310,1750662663669,-490.0,0.00027671,3]
[367109311,1750662663679,-490.0,0.00027671,3]
[367109312,1750662663688,-490.0,0.00027671,3]
[367109313,1750662663698,-788.62,0.00027671,3]
[367109314,1750662663707,-912.47,0.00027671,3]
[367109315,1750662663717,-1251.29,0.00027671,3]
[367109316,1750662663727,-675.57,0.00027671,3]
[367109317,1750662663736,-490.0,0.00027671,3]
[367109318,1750662663747,-655.66,0.00027671,3]
[367109319,1750662663757,-490.0,0.00027671,3]
[367109320,1750662663766,-300.0,0.00027671,3]
[367109321,1750662663776,-422.32794486,0.00027671,3]
[367109322,1750662663786,-490.0,0.00027671,3]
[367109323,1750662663795,-490.0,0.00027671,3]
[367109324,1750662663806,-1664.2,0.00027671,3]
[367109325,1750662663816,-1679.9,0.00027671,3]
[367109326,1750662663826,-1433.27,0.00027671,3]
[367109327,1750662663835,-490.0,0.00027671,3]
[367109328,1750662663846,-490.0,0.00027671,3]
[367109329,1750662663856,-490.0,0.00027671,3]
[367109330,1750662663865,-1066.4,0.00027671,3]
[367109331,1750662663874,-490.0,0.00027671,3]
[367109332,1750662663883,-572.95,0.00027671,3]
[367109333,1750662663892,-490.0,0.00027671,3]
[367109334,1750662663902,-490.0,0.00027671,3]
[367109335,1750662663911,-1605.51,0.00027671,3]
[367109336,1750662663920,-490.0,0.00027671,3]
[367109337,1750662663929,-490.0,0.00027671,3]
[367109338,1750662663939,-490.0,0.00027671,3]
[367109339,1750662663949,-1690.95,0.00027671,3]
[367109340,1750662663959,-1674.28,0.00027671,3]
[367109341,1750662663969,-490.0,0.00027671,3]
[367109342,1750662663979,-490.0,0.00027671,3]
[367109343,1750662663989,-490.0,0.00027671,3]
[367109344,1750662663999,-493.60315556,0.00027671,3]
[367109345,1750662664008,-490.0,0.00027671,3]
[367109346,1750662664018,-490.0,0.00027671,3]
[367109347,1750662664027,-490.0,0.00027671,3]
[367109348,1750662664037,-490.0,0.00027671,3]
[367109349,1750662664046,-490.0,0.00027671,3]
[367109350,1750662664056,-638.77,0.00027671,3]
[367109351,1750662664067,-490.0,0.00027671,3]
[367109352,1750662664077,-1574.11,0.00027671,3]
[367109353,1750662664086,-378.81,0.00027671,3]
[367109354,1750662664096,-684.38,0.00027671,3]
[367109355,1750662664106,-490.0,0.00027671,3]
[367109356,1750662664116,-1278.36,0.00027671,3]
[367109357,1750662664126,-905.6,0.00027671,3]
[367109358,1750662664136,-1682.39,0.00027671,3]
[367109359,1750662664145,-1410.38,0.00027671,3]
[367109360,1750662664154,-1126.22,0.00027671,3]
[367109361,1750662664164,-500.87134312,0.00027671,3]
[367109362,1750662664175,-490.0,0.00027671,3]
[367109363,1750662664185,-1883.69,0.00027671,3]
[367109364,1750662664196,-506.66854113,0.00027671,3]
[367109365,1750662664206,-7415.21,0.00027671,3]
[367109366,1750662664216,-2332.56,0.00027671,3]
[367109367,1750662664226,-259.27563019,0.00027671,3]
[367109368,1750662664236,-490.0,0.00027671,3]
[367109369,1750662664246,-490.0,0.00027671,3]
[367109370,1750662664256,-1248.93,0.00027671,3]
[367109371,1750662664266,-490.0,0.00027671,3]
[367109372,1750662664276,-1449.04,0.00027671,3]
[367109373,1750662664286,-490.0,0.00027671,3]
[367109374,1750662664296,-849.69,0.00027671,3]
[367109375,1750662664433,-490.0,0.00027671,3]
[367109376,1750662664449,-883.32,0.00027671,3]
[367109377,1750662664460,-490.0,0.00027671,3]
[367109378,1750662664471,-587.88,0.00027671,3]
[367109379,1750662664482,-901.3,0.00027671,3]
[367109380,1750662664492,-490.0,0.00027671,3]
[367109381,1750662664504,-490.0,0.00027671,3]
[367109382,1750662664521,-498.65172867,0.00027671,3]
[367109383,1750662664531,-1164.04,0.00027671,3]
[367109384,1750662664542,-490.0,0.00027671,3]
[367109385,1750662664552,-1753.14,0.00027671,3]
[367109386,1750662664564,-490.0,0.00027671,3]
[367109387,1750662664575,-4073.96,0.00027671,3]
[367109388,1750662664585,-10399.38,0.00027671,3]
[367109389,1750662664596,-490.0,0.00027671,3]
[367109390,1750662664607,-580.67,0.00027671,3]
[367109391,1750662664616,-490.0,0.00027671,3]
[367109392,1750662664625,-1448.46,0.00027671,3]
[367109393,1750662664635,-836.73,0.00027671,3]
[367109394,1750662664646,-918.93,0.00027671,3]
[367109395,1750662664656,-1355.08,0.00027671,3]
[367109396,1750662664666,-526.35,0.00027671,3]
[367109397,1750662664675,-490.0,0.00027671,3]
[367109398,1750662664685,-6824.52,0.00027671,3]
[367109399,1750662664695,-497.34246046,0.00027671,3]
[367109400,1750662664706,-1900.51,0.00027671,3]
[367109401,1750662664716,-1016.76,0.00027671,3]
[367109402,1750662664725,-490.0,0.00027671,3]
[367109403,1750662664735,-3401.6,0.00027671,3]
[367109404,1750662664745,-490.0,0.00027671,3]
[367109405,1750662664755,-490.0,0.00027671,3]
[367109406,1750662664765,-3966.47,0.00027671,3]
[367109407,1750662664776,-1741.72,0.00027671,3]
[367109408,1750662664786,-490.0,0.00027671,3]
[367109409,1750662664796,-490.0,0.00027671,3]
[367109410,1750662664806,-490.0,0.00027671,3]
[367109411,1750662664822,-490.0,0.00027671,3]
[367109412,1750662664832,-909.73,0.00027671,3]
[367109413,1750662664842,-608.52,0.00027671,3]
[367109414,1750662664853,-490.0,0.00027671,3]
[367109415,1750662664863,-934.07,0.00027671,3]
[367109416,1750662664873,-4949.36,0.00027671,3]
[367109417,1750662664883,-490.0,0.00027671,3]
[367109418,1750662664894,-2915.88,0.00027671,3]
[367109419,1750662664903,-490.0,0.00027671,3]
[367109420,1750662664913,-576.18822895,0.00027671,3]
[367109421,1750662664923,-490.0,0.00027671,3]
[367109422,1750662664933,-1585.93,0.00027671,3]
[367109423,1750662664943,-490.0,0.00027671,3]
[367109424,1750662664953,-490.0,0.00027671,3]
[367109425,1750662664964,-18062.45,0.00027671,3]
[367109426,1750662664974,-814.19,0.00027671,3]
[367109427,1750662664984,-3468.99,0.00027671,3]
[367109428,1750662664994,-490.0,0.00027671,3]
[367109429,1750662665004,-1570.58,0.00027671,3]
[367109430,1750662665014,-490.0,0.00027671,3]
[367109431,1750662665024,-1672.97,0.00027671,3]
[367109432,1750662665034,-490.0,0.00027671,3]
[367109433,1750662665045,-798.22,0.00027671,3]
[367109434,1750662665055,-789.6,0.00027671,3]
[367109435,1750662665070,-1533.06,0.00027671,3]
[367109436,1750662665080,-1681.4,0.00027671,3]
[367109437,1750662665091,-490.0,0.00027671,3]
[367109438,1750662665101,-490.0,0.00027671,3]
[367109439,1750662665111,-528.64,0.00027671,3]
[367109440,1750662665120,-549.1027622,0.00027671,3]
[367109441,1750662665130,-1108.02,0.00027671,3]
[367109442,1750662665140,-1980.76,0.00027671,3]
[367109443,1750662665150,-2594.4,0.00027671,3]
[367109444,1750662665160,-490.0,0.00027671,3]
[367109445,1750662665170,-490.0,0.00027671,3]
[367109446,1750662665180,-1019.18,0.00027671,3]
[367109447,1750662665191,-1623.55,0.00027671,3]
[367109448,1750662665200,-490.0,0.00027671,3]
[367109449,1750662665210,-891.21,0.00027671,3]
[367109450,1750662665220,-3127.29,0.00027671,3]
[367109451,1750662665230,-1174.99,0.00027671,3]
[367109452,1750662665242,-490.0,0.00027671,3]
[367109453,1750662665251,-1569.21,0.00027671,3]
[367109454,1750662665261,-490.0,0.00027671,3]
[367109455,1750662665271,-490.0,0.00027671,3]
[367109456,1750662665281,-490.0,0.00027671,3]
[367109457,1750662665291,-1940.59,0.00027671,3]
[367109458,1750662665302,-1749.09,0.00027671,3]
[367109459,1750662665321,-2329.34,0.00027671,3]
[367109460,1750662665330,-1830.85,0.00027671,3]
[367109461,1750662665340,-1700.21,0.00027671,3]
[367109462,1750662665350,-490.0,0.00027671,3]
[367109463,1750662665359,-2769.81,0.00027671,3]
[367109464,1750662665370,-637.21,0.00027671,3]
[367109465,1750662665380,-490.0,0.00027671,3]
[367109466,1750662665389,-6713.02,0.00027671,3]
[367109467,1750662665399,-777.56,0.00027671,3]
[367109468,1750662665408,-500.25213793,0.00027671,3]
[367109469,1750662665418,-614.83898912,0.00027671,3]
[367109470,1750662665427,-490.0,0.00027671,3]
[367109471,1750662665437,-2394.73,0.00027671,3]
[367109472,1750662665446,-1294.78,0.00027671,3]
[367109473,1750662665456,-826.09,0.00027671,3]
[367109474,1750662665465,-760.04,0.00027671,3]
[367109475,1750662665476,-490.0,0.00027671,3]
[367109476,1750662665486,-555.71,0.00027671,3]
[367109477,1750662665495,-1626.24,0.00027671,3]
[367109478,1750662665507,-4056.64,0.00027671,3]
[367109479,1750662665518,-713.4,0.00027671,3]
[367109480,1750662665529,-490.0,0.00027671,3]
[367109481,1750662665538,-1498.64,0.00027671,3]
[367109482,1750662665547,-1457.21,0.00027671,3]
[367109483,1750662665556,-490.0,0.00027671,3]
[367109484,1750662665568,-737.54,0.00027671,3]
[367109485,1750662665578,-490.0,0.00027671,3]
[367109486,1750662665589,-1307.83,0.00027671,3]
[367109487,1750662665599,-490.0,0.00027671,3]
[367109488,1750662665608,-728.06,0.00027671,3]
[367109489,1750662665617,-490.0,0.00027671,3]
[367109490,1750662665626,-490.0,0.00027671,3]
[367109491,1750662665639,-490.0,0.00027671,3]
[367109492,1750662665651,-1832.35,0.00027671,3]
[367109493,1750662665661,-494.68461012,0.00027671,3]
[367109494,1750662665671,-1380.67,0.00027671,3]
[367109495,1750662665680,-490.0,0.00027671,3]
[367109496,1750662665690,-2228.14,0.00027671,3]
[367109497,1750662665699,-2372.02,0.00027671,3]
[367109498,1750662665708,-490.0,0.00027671,3]
[367109499,1750662665718,-490.0,0.00027671,3]
[367109500,1750662665727,-490.0,0.00027671,3]
[367109501,1750662665737,-788.8,0.00027671,3]
[367109502,1750662665746,-3318.96,0.00027671,3]
[367109503,1750662665755,-709.01,0.00027671,3]
[367109504,1750662665765,-862.45,0.00027671,3]
[367109505,1750662665774,-490.0,0.00027671,3]
[367109506,1750662665783,-1200.13,0.00027671,3]
[367109507,1750662665792,-1916.86,0.00027671,3]
[367109508,1750662665801,-490.0,0.00027671,3]
[367109509,1750662665810,-490.0,0.00027671,3]
[367109510,1750662665822,-490.0,0.00027671,3]
[367109511,1750662665832,-678.77,0.00027671,3]
[367109512,1750662665841,-4654.08,0.00027671,3]
[367109513,1750662665850,-1366.52,0.00027671,3]
[367109514,1750662665859,-788.62,0.00027671,3]
[367109515,1750662665869,-515.04,0.00027671,3]
[367109516,1750662665878,-553.78,0.00027671,3]
[367109517,1750662665888,-1578.33,0.00027671,3]
[367109518,1750662665898,-1107.26,0.00027671,3]
[367109519,1750662665907,-490.51919826,0.00027671,3]
[367109520,1750662665916,-490.0,0.00027671,3]
[367109521,1750662665927,-498.97,0.00027671,3]
[367109522,1750662665936,-7394.17,0.00027671,3]
[367109523,1750662665945,-490.0,0.00027671,3]
[367109524,1750662665954,-1624.99,0.00027671,3]
[367109525,1750662665964,-490.0,0.00027671,3]
[367109526,1750662665973,-1036.64,0.00027671,3]
[367109527,1750662665983,-490.0,0.00027671,3]
[367109528,1750662665993,-500.0,0.00027671,3]
[367109529,1750662666003,-2834.49,0.00027671,3]
[367109530,1750662666013,-490.0,0.00027671,3]
[367109531,1750662666022,-12536.04,0.00027671,3]
[367109532,1750662666032,-458.320975,0.00027671,3]
[367109533,1750662666041,-490.0,0.00027671,3]
[367109534,1750662666051,-3543.99,0.00027671,3]
[367109535,1750662666060,-1768.62,0.00027671,3]
[367109536,1750662666079,-490.0,0.00027671,3]
[367109537,1750662666088,-1552.44,0.00027671,3]
[367109538,1750662666098,-497.45,0.00027671,3]
[367109539,1750662666107,-490.0,0.00027671,3]
[367109540,1750662666117,-490.0,0.00027671,3]
[367109541,1750662666126,-1947.91,0.00027671,3]
[367109542,1750662666135,-510.26,0.00027671,3]
[367109543,1750662666145,-1619.96,0.00027671,3]
[367109544,1750662666155,-510.41,0.00027671,3]
[367109545,1750662666165,-579.49286009,0.00027671,3]
[367109546,1750662666174,-5190.35,0.00027671,3]
[367109547,1750662666184,-9852.89,0.00027671,3]
[367109548,1750662666194,-490.0,0.00027671,3]
[367109549,1750662666203,-490.0,0.00027671,3]
[367109550,1750662666212,-490.0,0.00027671,3]
[367109551,1750662666222,-814.87,0.00027671,3]
[367109552,1750662666231,-2783.14,0.00027671,3]
[367109553,1750662666241,-490.0,0.00027671,3]
[367109554,1750662666250,-1717.08,0.00027671,3]
[367109555,1750662666260,-2330.84,0.00027671,3]
[367109556,1750662666270,-1630.26,0.00027671,3]
[367109557,1750662666279,-492.72939576,0.00027671,3]
[367109558,1750662666289,-752.02,0.00027671,3]
[367109559,1750662666299,-490.0,0.00027671,3]
[367109560,1750662666309,-1618.67,0.00027671,3]
[367109561,1750662666323,-490.0,0.00027671,3]
[367109562,1750662666332,-1151.97,0.00027671,3]
[367109563,1750662666342,-915.84,0.00027671,3]
[367109564,1750662666352,-670.37,0.00027671,3]
[367109565,1750662666361,-1776.65,0.00027671,3]
[367109566,1750662666371,-3986.65,0.00027671,3]
[367109567,1750662666381,-1960.82,0.00027671,3]
[367109568,1750662666390,-1591.01,0.00027671,3]
[367109569,1750662666400,-490.0,0.00027671,3]
[367109570,1750662666409,-6065.53,0.00027671,3]
[367109571,1750662666419,-1605.38,0.00027671,3]
[367109572,1750662666429,-1642.63,0.00027671,3]
[367109573,1750662666439,-798.12,0.00027671,3]
[367109574,1750662666449,-490.0,0.00027671,3]
[367109575,1750662666458,-490.0,0.00027671,3]
[367109576,1750662666468,-490.0,0.00027671,3]
[367109577,1750662666477,-2292.5,0.00027671,3]
[367109578,1750662666487,-1292.66,0.00027671,3]
[367109579,1750662666497,-4219.23,0.00027671,3]
[367109580,1750662666508,-2903.63,0.00027671,3]
[367109581,1750662666518,-1562.1,0.00027671,3]
[367109582,1750662666528,-765.43,0.00027671,3]
[367109583,1750662666537,-1872.32,0.00027671,3]
[367109584,1750662666548,-490.0,0.00027671,3]
[367109585,1750662666557,-3240.53,0.00027671,3]
[367109586,1750662666893,-492.32,0.00027671,3]
[367109587,1750662666908,-1499.13,0.00027671,3]
[367109588,1750662666918,-1684.89,0.00027671,3]
[367109589,1750662666928,-2262.37,0.00027671,3]
[367109590,1750662666938,-1822.31,0.00027671,3]
[367109591,1750662666948,-490.0,0.00027671,3]
[367109592,1750662666958,-490.0,0.00027671,3]
[367109593,1750662666967,-490.0,0.00027671,3]
[367109594,1750662666977,-745.32,0.00027671,3]
[367109595,1750662666987,-319.29658236,0.00027671,2]
[367109596,1750662666996,-1565.33,0.00027671,3]
[367109597,1750662667006,-1787.94,0.00027671,3]
[367109598,1750662667016,-3248.59,0.00027671,3]
[367109599,1750662667026,-490.0,0.00027671,3]
[367109600,1750662667035,-1599.78,0.00027671,3]
[367109601,1750662667045,-490.0,0.00027671,3]
[367109602,1750662667054,-1190.83,0.00027671,3]
[367109603,1750662667064,-795.18,0.00027671,3]
[367109604,1750662667075,-490.0,0.00027671,3]
[367109605,1750662667084,-8785.1,0.00027671,3]
[367109606,1750662667094,-638.67,0.00027671,3]
[367109607,1750662667104,-849.6,0.00027671,3]
[367109608,1750662667113,-1583.66,0.00027671,3]
[367109609,1750662667123,-408.28544325,0.00027671,3]
[367109610,1750662667133,-365.25958395,0.00027671,3]
[367109611,1750662667142,-1444.68,0.00027671,3]
[367109612,1750662667152,-507.9,0.00027671,3]
[367109613,1750662667162,-1335.88,0.00027671,3]
[367109614,1750662667172,-490.0,0.00027671,3]
[367109615,1750662667182,-948.02,0.00027671,3]
[367109616,1750662667192,-490.0,0.00027671,3]
[367109617,1750662667202,-473.84147003,0.00027671,3]
[367109618,1750662667212,-490.0,0.00027671,3]
[367109619,1750662667222,-490.0,0.00027671,3]
[367109620,1750662667231,-352.28989286,0.00027671,3]
[367109621,1750662667241,-306.52973999,0.00027671,3]
[367109622,1750662667251,-3963.91,0.00027671,3]
[367109623,1750662667260,-490.0,0.00027671,3]
[367109624,1750662667270,-490.0,0.00027671,3]
[367109625,1750662667281,-1578.99,0.00027671,3]
[367109626,1750662667290,-490.0,0.00027671,3]
[367109627,1750662667301,-490.0,0.00027671,3]
[367109628,1750662667311,-1445.82,0.00027671,3]
[367109629,1750662667324,-490.0,0.00027671,3]
[367109630,1750662667333,-1285.59,0.00027671,3]
[367109631,1750662667343,-490.0,0.00027671,3]
[367109632,1750662667353,-490.0,0.00027671,3]
[367109633,1750662667363,-490.0,0.00027671,3]
[367109634,1750662667373,-490.0,0.00027671,3]